[Event "*** SCC Grand Prix: Titled Tuesday Blitz"]
[Site "Chess.com"]
[Date "2020.10.13"]
[Round "3"]
[White "vanea_03"]
[Black "Beca95"]
[Result "1/2-1/2"]
[WhiteElo "2696"]
[BlackElo "2907"]
[TimeControl "180+1"]
[EndTime "10:31:12 PDT"]
[Termination "Game drawn - insufficient material"]

1. d4 {[%clk 0:03:00.9]} 1... Nf6 {[%clk 0:02:57.9]} 2. c4 {[%clk 0:03:01.4]}
2... e6 {[%clk 0:02:58.1]} 3. g3 {[%clk 0:03:01.6]} 3... c5 {[%clk 0:02:58.2]}
4. Nf3 {[%clk 0:03:01.4]} 4... cxd4 {[%clk 0:02:56.1]} 5. Nxd4 {[%clk
0:03:02.3]} 5... Bb4+ {[%clk 0:02:55.4]} 6. Nc3 {[%clk 0:02:55.4]} 6... Ne4
{[%clk 0:02:52.8]} 7. Bd2 {[%clk 0:02:55.4]} 7... Bxc3 {[%clk 0:02:51.5]} 8.
Bxc3 {[%clk 0:02:54.1]} 8... Nxc3 {[%clk 0:02:50]} 9. bxc3 {[%clk 0:02:53.5]}
9... O-O {[%clk 0:02:50.3]} 10. Bg2 {[%clk 0:02:51.3]} 10... Na6 {[%clk
0:02:50.5]} 11. O-O {[%clk 0:02:48.7]} 11... Nc5 {[%clk 0:02:50.8]} 12. Nb5
{[%clk 0:02:47.8]} 12... a6 {[%clk 0:02:44.9]} 13. Nd6 {[%clk 0:02:47.6]} 13...
Qc7 {[%clk 0:02:44.3]} 14. Qd4 {[%clk 0:02:23.2]} 14... Rb8 {[%clk 0:02:42.1]}
15. Rfd1 {[%clk 0:02:23]} 15... b6 {[%clk 0:02:40.5]} 16. Rab1 {[%clk
0:02:21.8]} 16... a5 {[%clk 0:02:20.8]} 17. Nb5 {[%clk 0:02:18.9]} 17... Qd8
{[%clk 0:02:19.5]} 18. Nd6 {[%clk 0:01:53.2]} 18... f5 {[%clk 0:02:17.3]} 19. f4
{[%clk 0:01:48.3]} 19... Ba6 {[%clk 0:02:15.7]} 20. Bf3 {[%clk 0:01:45.1]} 20...
Qc7 {[%clk 0:02:02.3]} 21. e3 {[%clk 0:01:40.5]} 21... Rfd8 {[%clk 0:01:47.9]}
22. h3 {[%clk 0:01:40]} 22... Rf8 {[%clk 0:01:44.3]} 23. Kh2 {[%clk 0:01:39.7]}
23... Qd8 {[%clk 0:01:43.4]} 24. Rg1 {[%clk 0:01:21.9]} 24... Qf6 {[%clk
0:01:42.8]} 25. g4 {[%clk 0:01:06.6]} 25... fxg4 {[%clk 0:01:42.3]} 26. Rxg4
{[%clk 0:01:06.3]} 26... Kh8 {[%clk 0:01:42.7]} 27. Bh1 {[%clk 0:00:45.7]} 27...
Na4 {[%clk 0:01:32.1]} 28. Rbg1 {[%clk 0:00:40]} 28... g6 {[%clk 0:01:27]} 29.
Be4 {[%clk 0:00:29.1]} 29... Nxc3 {[%clk 0:00:50.4]} 30. Bxg6 {[%clk 0:00:29.3]}
30... Qxd4 {[%clk 0:00:50]} 31. exd4 {[%clk 0:00:24]} 31... Ne2 {[%clk 0:00:50]}
32. Re1 {[%clk 0:00:16.9]} 32... Nxf4 {[%clk 0:00:47.7]} 33. Be4 {[%clk
0:00:14.2]} 33... Nh5 {[%clk 0:00:43.4]} 34. Reg1 {[%clk 0:00:13.1]} 34... Nf6
{[%clk 0:00:35.9]} 35. Rh4 {[%clk 0:00:12.7]} 35... Nxe4 {[%clk 0:00:35.1]} 36.
Nxe4 {[%clk 0:00:12.6]} 36... Bxc4 {[%clk 0:00:31.7]} 37. Ng5 {[%clk 0:00:12.8]}
37... Bd3 {[%clk 0:00:31.9]} 38. Rc1 {[%clk 0:00:08]} 38... Rbc8 {[%clk
0:00:30.2]} 39. Nf7+ {[%clk 0:00:05.7]} 39... Kg7 {[%clk 0:00:29.8]} 40. Rxc8
{[%clk 0:00:06.6]} 40... Rxc8 {[%clk 0:00:29.8]} 41. Ne5 {[%clk 0:00:07.5]}
41... Rc2+ {[%clk 0:00:28.6]} 42. Kg3 {[%clk 0:00:08]} 42... Bf5 {[%clk
0:00:28.8]} 43. Nxd7 {[%clk 0:00:05.9]} 43... b5 {[%clk 0:00:29.3]} 44. Kf4
{[%clk 0:00:03.9]} 44... Rxa2 {[%clk 0:00:28.4]} 45. Ke5 {[%clk 0:00:04.5]}
45... Re2+ {[%clk 0:00:24.4]} 46. Kd6 {[%clk 0:00:04.5]} 46... b4 {[%clk
0:00:22.7]} 47. Nc5 {[%clk 0:00:04.8]} 47... Rd2 {[%clk 0:00:19.2]} 48. Rf4
{[%clk 0:00:05]} 48... Kg6 {[%clk 0:00:19]} 49. h4 {[%clk 0:00:04.5]} 49... h6
{[%clk 0:00:18.9]} 50. Kc6 {[%clk 0:00:05]} 50... Ra2 {[%clk 0:00:09.7]} 51. Kb5
{[%clk 0:00:05.1]} 51... Ra3 {[%clk 0:00:09.7]} 52. Rf2 {[%clk 0:00:03.3]} 52...
Bg4 {[%clk 0:00:10]} 53. Rb2 {[%clk 0:00:02.2]} 53... h5 {[%clk 0:00:08.5]} 54.
Nb7 {[%clk 0:00:02.7]} 54... b3 {[%clk 0:00:07.7]} 55. Nxa5 {[%clk 0:00:02.9]}
55... Bd1 {[%clk 0:00:06.1]} 56. Kb4 {[%clk 0:00:03]} 56... Ra2 {[%clk
0:00:06.4]} 57. Rb1 {[%clk 0:00:02.3]} 57... Rd2 {[%clk 0:00:06.6]} 58. Nxb3
{[%clk 0:00:03]} 58... Bxb3 {[%clk 0:00:06.8]} 59. Kxb3 {[%clk 0:00:03.9]} 59...
Rxd4 {[%clk 0:00:07.3]} 60. Rg1+ {[%clk 0:00:04.4]} 60... Kf6 {[%clk 0:00:07]}
61. Rf1+ {[%clk 0:00:04.6]} 61... Ke5 {[%clk 0:00:06.9]} 62. Re1+ {[%clk
0:00:04.8]} 62... Re4 {[%clk 0:00:07.4]} 63. Rh1 {[%clk 0:00:05.4]} 63... Kf5
{[%clk 0:00:07.9]} 64. Kc3 {[%clk 0:00:05.7]} 64... Kg4 {[%clk 0:00:07.6]} 65.
Kd3 {[%clk 0:00:06.2]} 65... Re5 {[%clk 0:00:07.5]} 66. Kd4 {[%clk 0:00:06.6]}
66... Re2 {[%clk 0:00:07.6]} 67. Kd3 {[%clk 0:00:07]} 67... Re5 {[%clk
0:00:07.5]} 68. Kd4 {[%clk 0:00:07.5]} 68... Rd5+ {[%clk 0:00:07.9]} 69. Ke4
{[%clk 0:00:07.8]} 69... Ra5 {[%clk 0:00:08.5]} 70. Rh2 {[%clk 0:00:06.9]} 70...
Kg3 {[%clk 0:00:08.7]} 71. Rh1 {[%clk 0:00:07]} 71... Ra2 {[%clk 0:00:09.2]} 72.
Ke3 {[%clk 0:00:05.8]} 72... e5 {[%clk 0:00:08.9]} 73. Ke4 {[%clk 0:00:03.1]}
73... Re2+ {[%clk 0:00:08.7]} 74. Kf5 {[%clk 0:00:03.7]} 74... e4 {[%clk
0:00:07.8]} 75. Kg5 {[%clk 0:00:04.1]} 75... e3 {[%clk 0:00:08.3]} 76. Kxh5
{[%clk 0:00:04.6]} 76... Rg2 {[%clk 0:00:07.2]} 77. Kh6 {[%clk 0:00:02.7]} 77...
Kf2 {[%clk 0:00:07.5]} 78. h5 {[%clk 0:00:03.2]} 78... e2 {[%clk 0:00:08]} 79.
Rb1 {[%clk 0:00:02.7]} 79... Rg1 {[%clk 0:00:07.6]} 80. Rb2 {[%clk 0:00:03.3]}
80... Kf3 {[%clk 0:00:08.1]} 81. Rxe2 {[%clk 0:00:03.5]} 81... Kxe2 {[%clk
0:00:08.5]} 82. Kh7 {[%clk 0:00:04.4]} 82... Kf3 {[%clk 0:00:08.7]} 83. h6
{[%clk 0:00:05.3]} 83... Kf4 {[%clk 0:00:09.3]} 84. Kh8 {[%clk 0:00:06.2]} 84...
Kf5 {[%clk 0:00:09.7]} 85. h7 {[%clk 0:00:07.1]} 85... Ra1 {[%clk 0:00:09.6]}
86. Kg8 {[%clk 0:00:07.7]} 86... Ra8+ {[%clk 0:00:09.4]} 87. Kg7 {[%clk
0:00:07.8]} 87... Ra7+ {[%clk 0:00:09.6]} 88. Kh6 {[%clk 0:00:08.3]} 88... Ra8
{[%clk 0:00:07.1]} 89. Kg7 {[%clk 0:00:08.4]} 89... Ra7+ {[%clk 0:00:07.3]} 90.
Kh6 {[%clk 0:00:08.7]} 90... Rxh7+ {[%clk 0:00:03]} 91. Kxh7 {[%clk 0:00:09]}
1/2-1/2

[Event "*** SCC Grand Prix: Titled Tuesday Blitz"]
[Site "Chess.com"]
[Date "2020.10.13"]
[Round "3"]
[White "vovachesss"]
[Black "amintabatabaei"]
[Result "0-1"]
[WhiteElo "2674"]
[BlackElo "2906"]
[TimeControl "180+1"]
[EndTime "10:31:27 PDT"]
[Termination "amintabatabaei won on time"]

1. Nf3 {[%clk 0:02:57.6]} 1... d5 {[%clk 0:02:58.1]} 2. c4 {[%clk 0:02:56.9]}
2... d4 {[%clk 0:02:56.8]} 3. e3 {[%clk 0:02:56.3]} 3... Nc6 {[%clk 0:02:56.2]}
4. b4 {[%clk 0:02:45.4]} 4... dxe3 {[%clk 0:02:47.7]} 5. fxe3 {[%clk 0:02:45.2]}
5... Nxb4 {[%clk 0:02:48]} 6. d4 {[%clk 0:02:37.5]} 6... c5 {[%clk 0:02:48]} 7.
a3 {[%clk 0:02:20.6]} 7... Na6 {[%clk 0:02:39.6]} 8. Be2 {[%clk 0:02:13.8]} 8...
Nf6 {[%clk 0:02:37.9]} 9. O-O {[%clk 0:02:12.5]} 9... g6 {[%clk 0:02:38.1]} 10.
Qa4+ {[%clk 0:01:57.1]} 10... Bd7 {[%clk 0:02:36.1]} 11. Qb3 {[%clk 0:01:57.5]}
11... Rb8 {[%clk 0:02:30.8]} 12. Nc3 {[%clk 0:01:31.5]} 12... Bg7 {[%clk
0:02:29]} 13. d5 {[%clk 0:01:17.7]} 13... O-O {[%clk 0:02:28.8]} 14. Rb1 {[%clk
0:01:05.4]} 14... Nc7 {[%clk 0:02:26.5]} 15. a4 {[%clk 0:01:05.5]} 15... Na6
{[%clk 0:02:19.7]} 16. e4 {[%clk 0:01:02.8]} 16... Nb4 {[%clk 0:02:18.5]} 17.
Bf4 {[%clk 0:00:39.4]} 17... Rc8 {[%clk 0:02:18.5]} 18. h3 {[%clk 0:00:39.8]}
18... Nh5 {[%clk 0:02:02.3]} 19. Bh2 {[%clk 0:00:39.7]} 19... e6 {[%clk
0:01:58.5]} 20. e5 {[%clk 0:00:35.4]} 20... Bh6 {[%clk 0:01:49.5]} 21. Ne4
{[%clk 0:00:29.4]} 21... exd5 {[%clk 0:01:45.3]} 22. cxd5 {[%clk 0:00:29.7]}
22... Bf5 {[%clk 0:01:45]} 23. Nd6 {[%clk 0:00:26.6]} 23... Bxb1 {[%clk
0:01:41.8]} 24. Rxb1 {[%clk 0:00:25.7]} 24... Rc7 {[%clk 0:01:33]} 25. Qc4
{[%clk 0:00:16.8]} 25... Ng7 {[%clk 0:01:07.1]} 26. Rd1 {[%clk 0:00:14.3]} 26...
Ne8 {[%clk 0:01:07]} 27. Ne4 {[%clk 0:00:14.1]} 27... Kh8 {[%clk 0:00:52.1]} 28.
Bg3 {[%clk 0:00:14.5]} 28... f5 {[%clk 0:00:44.3]} 29. Bh4 {[%clk 0:00:11.1]}
29... Qc8 {[%clk 0:00:40.2]} 30. Nf6 {[%clk 0:00:11]} 30... Nxf6 {[%clk
0:00:39.9]} 31. Bxf6+ {[%clk 0:00:11.4]} 31... Bg7 {[%clk 0:00:40.6]} 32. d6
{[%clk 0:00:09.2]} 32... Rcf7 {[%clk 0:00:38.6]} 33. Ng5 {[%clk 0:00:07.8]}
33... Rxf6 {[%clk 0:00:37.1]} 34. exf6 {[%clk 0:00:07.8]} 34... Bxf6 {[%clk
0:00:38]} 35. Ne6 {[%clk 0:00:06]} 35... Rg8 {[%clk 0:00:23.7]} 36. d7 {[%clk
0:00:06.5]} 36... Qc6 {[%clk 0:00:13.4]} 37. d8=Q {[%clk 0:00:05.7]} 37... Bxd8
{[%clk 0:00:13.9]} 38. Nxd8 {[%clk 0:00:06.3]} 38... Qf6 {[%clk 0:00:13.6]} 39.
Nf7+ {[%clk 0:00:05.7]} 39... Kg7 {[%clk 0:00:13.6]} 40. Nd6 {[%clk 0:00:05.4]}
40... b6 {[%clk 0:00:10.8]} 41. a5 {[%clk 0:00:05.4]} 41... Nc6 {[%clk
0:00:11.1]} 42. Qd5 {[%clk 0:00:05.1]} 42... Nd4 {[%clk 0:00:11.1]} 43. Bc4
{[%clk 0:00:05.1]} 43... Rf8 {[%clk 0:00:11]} 44. Nb5 {[%clk 0:00:04.8]} 44...
Rd8 {[%clk 0:00:07.8]} 45. Qb7+ {[%clk 0:00:03.2]} 45... Kh6 {[%clk 0:00:08.4]}
46. Nxd4 {[%clk 0:00:03.7]} 46... Rxd4 {[%clk 0:00:07.6]} 47. Rc1 {[%clk
0:00:03.1]} 47... Rd2 {[%clk 0:00:07.1]} 48. Qf3 {[%clk 0:00:03.3]} 48... Qd4+
{[%clk 0:00:07.1]} 49. Kh1 {[%clk 0:00:03.9]} 49... bxa5 {[%clk 0:00:07.2]} 50.
Bb5 {[%clk 0:00:04]} 50... Rf2 {[%clk 0:00:07.3]} 51. Qg3 {[%clk 0:00:04.3]}
51... Qf4 {[%clk 0:00:07.2]} 52. Qxf4+ {[%clk 0:00:04.2]} 52... Rxf4 {[%clk
0:00:08.1]} 53. Rxc5 {[%clk 0:00:04.9]} 53... a4 {[%clk 0:00:08.7]} 54. Rc7
{[%clk 0:00:05.1]} 54... Rb4 {[%clk 0:00:05.7]} 55. Bd7 {[%clk 0:00:05.6]} 55...
a6 {[%clk 0:00:02.4]} 56. Ra7 {[%clk 0:00:06.1]} 56... Rd4 {[%clk 0:00:02.8]}
57. Bc6 {[%clk 0:00:05.2]} 57... a3 {[%clk 0:00:03.1]} 58. Rxa6 {[%clk
0:00:05.6]} 58... Rd6 {[%clk 0:00:03.8]} 59. Kh2 {[%clk 0:00:05.4]} 59... a2
{[%clk 0:00:04.3]} 60. Rxa2 {[%clk 0:00:03.3]} 60... Rxc6 {[%clk 0:00:04.9]} 61.
Ra7 {[%clk 0:00:03.6]} 61... Rf6 {[%clk 0:00:05.4]} 62. Ra2 {[%clk 0:00:04.1]}
62... Kg7 {[%clk 0:00:05.4]} 63. Rb2 {[%clk 0:00:04.8]} 63... Rf7 {[%clk
0:00:06.3]} 64. Rc2 {[%clk 0:00:05.1]} 64... Rb7 {[%clk 0:00:06.7]} 65. Rd2
{[%clk 0:00:05.4]} 65... Ra7 {[%clk 0:00:06.9]} 66. Rc2 {[%clk 0:00:06]} 66...
Re7 {[%clk 0:00:07.5]} 67. Rb2 {[%clk 0:00:06.5]} 67... Kf6 {[%clk 0:00:08]} 68.
Ra2 {[%clk 0:00:07]} 68... Kg5 {[%clk 0:00:08.3]} 69. Rb2 {[%clk 0:00:07.5]}
69... f4 {[%clk 0:00:08.5]} 70. Rc2 {[%clk 0:00:07.6]} 70... Re5 {[%clk
0:00:08.4]} 71. Rd2 {[%clk 0:00:08]} 71... Kh4 {[%clk 0:00:08.5]} 72. Rd4 {[%clk
0:00:07.9]} 72... Kg5 {[%clk 0:00:08.4]} 73. Rd2 {[%clk 0:00:08]} 73... Ra5
{[%clk 0:00:08.1]} 74. Rc2 {[%clk 0:00:08.4]} 74... h6 {[%clk 0:00:08.5]} 75.
Rb2 {[%clk 0:00:08.7]} 75... Kh5 {[%clk 0:00:08.7]} 76. Rc2 {[%clk 0:00:08.9]}
76... g5 {[%clk 0:00:09.2]} 77. Rb2 {[%clk 0:00:09.2]} 77... Kh4 {[%clk
0:00:09.4]} 78. Rb6 {[%clk 0:00:08.9]} 78... h5 {[%clk 0:00:09.1]} 79. Rb4
{[%clk 0:00:06.9]} 79... Ra2 {[%clk 0:00:08.9]} 80. Rb8 {[%clk 0:00:06.3]} 80...
f3 {[%clk 0:00:06.1]} 81. Rb4+ {[%clk 0:00:05.8]} 81... g4 {[%clk 0:00:06.3]}
82. hxg4 {[%clk 0:00:04.3]} 82... Rxg2+ {[%clk 0:00:06.2]} 83. Kh1 {[%clk
0:00:04.8]} 83... hxg4 {[%clk 0:00:04.9]} 84. Rb8 {[%clk 0:00:02.2]} 84... Ra2
{[%clk 0:00:04.9]} 85. Rb1 {[%clk 0:00:01.9]} 85... Kh3 {[%clk 0:00:04.6]} 86.
Rf1 {[%clk 0:00:01.7]} 86... Rh2+ {[%clk 0:00:04.3]} 87. Kg1 {[%clk 0:00:02.2]}
87... f2+ {[%clk 0:00:04.4]} 88. Rxf2 {[%clk 0:00:02.7]} 88... Rxf2 {[%clk
0:00:05.3]} 89. Kxf2 {[%clk 0:00:03.3]} 89... Kh2 {[%clk 0:00:05.7]} 90. Ke2
{[%clk 0:00:01.2]} 90... g3 {[%clk 0:00:06.6]} 0-1

[Event "*** SCC Grand Prix: Titled Tuesday Blitz"]
[Site "Chess.com"]
[Date "2020.10.13"]
[Round "3"]
[White "Srisshhhtea"]
[Black "Heineccius"]
[Result "1/2-1/2"]
[WhiteElo "2273"]
[BlackElo "2513"]
[TimeControl "180+1"]
[EndTime "10:31:39 PDT"]
[Termination "Game drawn by repetition"]

1. d4 {[%clk 0:03:00.9]} 1... Nf6 {[%clk 0:02:59.8]} 2. c4 {[%clk 0:03:00.3]}
2... e6 {[%clk 0:03:00.1]} 3. Nf3 {[%clk 0:02:59.4]} 3... Bb4+ {[%clk
0:02:59.9]} 4. Bd2 {[%clk 0:02:58.8]} 4... a5 {[%clk 0:02:59.2]} 5. g3 {[%clk
0:02:57.1]} 5... d6 {[%clk 0:02:59.1]} 6. Bg2 {[%clk 0:02:55.6]} 6... Nbd7
{[%clk 0:02:59.5]} 7. O-O {[%clk 0:02:54.5]} 7... e5 {[%clk 0:02:59.7]} 8. Nc3
{[%clk 0:02:54.2]} 8... exd4 {[%clk 0:02:56.1]} 9. Nxd4 {[%clk 0:02:53.8]} 9...
a4 {[%clk 0:02:41.3]} 10. Qc2 {[%clk 0:02:49.4]} 10... O-O {[%clk 0:02:37.2]}
11. Rad1 {[%clk 0:02:37.6]} 11... Nb6 {[%clk 0:02:36.3]} 12. b3 {[%clk
0:02:36.8]} 12... Qe7 {[%clk 0:02:20.3]} 13. e3 {[%clk 0:02:34.5]} 13... c6
{[%clk 0:01:55.6]} 14. Nxa4 {[%clk 0:02:27.9]} 14... Bc5 {[%clk 0:01:19.6]} 15.
Nxb6 {[%clk 0:02:18.3]} 15... Bxb6 {[%clk 0:01:18.8]} 16. Bc3 {[%clk 0:02:17.6]}
16... Bg4 {[%clk 0:01:16.5]} 17. Rd2 {[%clk 0:02:12.5]} 17... Rfe8 {[%clk
0:01:13.5]} 18. h3 {[%clk 0:02:10.1]} 18... Bd7 {[%clk 0:01:08.1]} 19. Nf5
{[%clk 0:01:53.3]} 19... Bxf5 {[%clk 0:01:06.3]} 20. Qxf5 {[%clk 0:01:54.2]}
20... Qe6 {[%clk 0:00:52.7]} 21. Qxe6 {[%clk 0:01:38.4]} 21... Rxe6 {[%clk
0:00:53.6]} 22. Rfd1 {[%clk 0:01:37.5]} 22... Bc7 {[%clk 0:00:49.4]} 23. a4
{[%clk 0:01:35.8]} 23... Kf8 {[%clk 0:00:48.3]} 24. Bb4 {[%clk 0:01:25.8]} 24...
c5 {[%clk 0:00:39.6]} 25. Bc3 {[%clk 0:01:23.8]} 25... Ne4 {[%clk 0:00:39.1]}
26. Bxe4 {[%clk 0:01:22.3]} 26... Rxe4 {[%clk 0:00:40]} 27. Kg2 {[%clk
0:01:20.7]} 27... Re6 {[%clk 0:00:40.3]} 28. Rd5 {[%clk 0:01:19.6]} 28... f6
{[%clk 0:00:38.5]} 29. Kf3 {[%clk 0:01:17.7]} 29... Ke7 {[%clk 0:00:36.5]} 30.
e4 {[%clk 0:01:08.2]} 30... b6 {[%clk 0:00:37]} 31. Bd2 {[%clk 0:01:06.5]} 31...
Kd7 {[%clk 0:00:35.3]} 32. Bf4 {[%clk 0:01:05.1]} 32... Kc6 {[%clk 0:00:35.6]}
33. Ke3 {[%clk 0:00:54.2]} 33... Rae8 {[%clk 0:00:35.9]} 34. f3 {[%clk
0:00:53.7]} 34... g6 {[%clk 0:00:36.4]} 35. Kd3 {[%clk 0:00:45.6]} 35... R8e7
{[%clk 0:00:34.6]} 36. Rd2 {[%clk 0:00:44.3]} 36... Rf7 {[%clk 0:00:34.4]} 37.
g4 {[%clk 0:00:39.9]} 37... Rf8 {[%clk 0:00:31.8]} 38. Kc2 {[%clk 0:00:36.9]}
38... Rf7 {[%clk 0:00:31.1]} 39. h4 {[%clk 0:00:30.6]} 39... Rf8 {[%clk
0:00:26.6]} 40. h5 {[%clk 0:00:26.8]} 40... g5 {[%clk 0:00:23]} 41. Bg3 {[%clk
0:00:25]} 41... h6 {[%clk 0:00:23.2]} 42. Rf5 {[%clk 0:00:24.3]} 42... Rfe8
{[%clk 0:00:21.4]} 43. Rd3 {[%clk 0:00:21.1]} 43... R8e7 {[%clk 0:00:21]} 44.
Be1 {[%clk 0:00:20]} 44... Re8 {[%clk 0:00:21.3]} 45. Bc3 {[%clk 0:00:19.6]}
45... Bd8 {[%clk 0:00:19.4]} 46. Rdd5 {[%clk 0:00:20.5]} 46... Be7 {[%clk
0:00:19.2]} 47. Rd3 {[%clk 0:00:19.9]} 47... Rc8 {[%clk 0:00:19.5]} 48. Rfd5
{[%clk 0:00:20.8]} 48... Rd8 {[%clk 0:00:19.1]} 49. a5 {[%clk 0:00:20.8]} 49...
bxa5 {[%clk 0:00:17.9]} 50. Bxa5 {[%clk 0:00:20.9]} 50... Ra8 {[%clk 0:00:18.8]}
51. Bc3 {[%clk 0:00:21]} 51... Ra2+ {[%clk 0:00:19.3]} 52. Bb2 {[%clk
0:00:21.3]} 52... Ra7 {[%clk 0:00:19.2]} 53. Kb1 {[%clk 0:00:21.2]} 53... Rd7
{[%clk 0:00:19.6]} 54. Rf5 {[%clk 0:00:20.8]} 54... Ra7 {[%clk 0:00:19.3]} 55.
Bc3 {[%clk 0:00:20.4]} 55... Kc7 {[%clk 0:00:19.1]} 56. Kb2 {[%clk 0:00:20.6]}
56... Rb7 {[%clk 0:00:19.6]} 57. Rfd5 {[%clk 0:00:19.8]} 57... Kc6 {[%clk
0:00:19.9]} 58. Bd2 {[%clk 0:00:19.6]} 58... Bd8 {[%clk 0:00:20]} 59. Bc3 {[%clk
0:00:18.1]} 59... Rb6 {[%clk 0:00:20.3]} 60. Be1 {[%clk 0:00:17.6]} 60... Kd7
{[%clk 0:00:20.5]} 61. Bg3 {[%clk 0:00:17.6]} 61... Ke7 {[%clk 0:00:21]} 62. Rf5
{[%clk 0:00:17.2]} 62... Bc7 {[%clk 0:00:21.1]} 63. Rfd5 {[%clk 0:00:17.2]}
63... Kf7 {[%clk 0:00:20.7]} 64. Bf2 {[%clk 0:00:16.9]} 64... Ke7 {[%clk
0:00:20.5]} 65. Bxc5 {[%clk 0:00:15.6]} 65... dxc5 {[%clk 0:00:19.6]} 66. Rd7+
{[%clk 0:00:16.1]} 66... Ke8 {[%clk 0:00:18.6]} 67. Rxc7 {[%clk 0:00:17]} 67...
Red6 {[%clk 0:00:17.7]} 68. Rd5 {[%clk 0:00:15.7]} 68... Rxd5 {[%clk 0:00:15.8]}
69. cxd5 {[%clk 0:00:16.6]} 69... Rb4 {[%clk 0:00:14.7]} 70. Kc3 {[%clk
0:00:16.2]} 70... Rd4 {[%clk 0:00:14.9]} 71. Rxc5 {[%clk 0:00:16.4]} 71... Rd1
{[%clk 0:00:15.4]} 72. Rc6 {[%clk 0:00:16.3]} 72... Rf1 {[%clk 0:00:15.9]} 73.
Rxf6 {[%clk 0:00:15.8]} 73... Ke7 {[%clk 0:00:16.8]} 74. Kd4 {[%clk 0:00:15.5]}
74... Kxf6 {[%clk 0:00:15.7]} 75. e5+ {[%clk 0:00:14.2]} 75... Ke7 {[%clk
0:00:16.1]} 76. Ke4 {[%clk 0:00:14.8]} 76... Re1+ {[%clk 0:00:15.9]} 77. Kf5
{[%clk 0:00:15.1]} 77... Re3 {[%clk 0:00:14.4]} 78. d6+ {[%clk 0:00:15]} 78...
Kd7 {[%clk 0:00:13.1]} 79. f4 {[%clk 0:00:15.9]} 79... Rf3 {[%clk 0:00:11.7]}
80. Kg6 {[%clk 0:00:15.3]} 80... Rxf4 {[%clk 0:00:09.7]} 81. Kxh6 {[%clk
0:00:15.8]} 81... Rxg4 {[%clk 0:00:10]} 82. Kg6 {[%clk 0:00:16.1]} 82... Re4
{[%clk 0:00:08.4]} 83. Kf5 {[%clk 0:00:14.3]} 83... Re1 {[%clk 0:00:06.2]} 84.
h6 {[%clk 0:00:14.6]} 84... g4 {[%clk 0:00:05.2]} 85. Kxg4 {[%clk 0:00:14.6]}
85... Rh1 {[%clk 0:00:05.1]} 86. Kg5 {[%clk 0:00:14.9]} 86... Ke6 {[%clk
0:00:05.5]} 87. Kg6 {[%clk 0:00:15.2]} 87... Rg1+ {[%clk 0:00:05.3]} 88. Kh7
{[%clk 0:00:12.1]} 88... Rg5 {[%clk 0:00:05]} 89. Kh8 {[%clk 0:00:07.8]} 89...
Rg4 {[%clk 0:00:02.7]} 90. h7 {[%clk 0:00:07.6]} 90... Kd7 {[%clk 0:00:03.2]}
91. b4 {[%clk 0:00:07.6]} 91... Ke6 {[%clk 0:00:03.4]} 92. b5 {[%clk 0:00:08.1]}
92... Kd7 {[%clk 0:00:04]} 93. b6 {[%clk 0:00:08.4]} 93... Ke6 {[%clk
0:00:04.6]} 94. b7 {[%clk 0:00:08.9]} 94... Rb4 {[%clk 0:00:04.5]} 95. Kg7
{[%clk 0:00:08.5]} 95... Rxb7+ {[%clk 0:00:04.9]} 96. Kg6 {[%clk 0:00:08.4]}
96... Rb8 {[%clk 0:00:05.4]} 97. Kg7 {[%clk 0:00:08.9]} 97... Rb7+ {[%clk
0:00:05.8]} 98. Kg6 {[%clk 0:00:09.3]} 98... Rb8 {[%clk 0:00:06.4]} 99. Kg7
{[%clk 0:00:09.8]} 99... Rb7+ {[%clk 0:00:06.9]} 1/2-1/2